bitfinex-derivatives/quotes_SOLF0:USTF0_20250606
["timestamp","ask_amount","ask_price","bid_price","bid_amount"]
[1749246744455,44.99988624,149.39,149.38,10.05003883]
[1749246745056,45.00004564,149.39,149.38,10.05003883]
[1749246745253,51.68864085,149.39,149.38,10.05003883]
[1749246745445,44.33309472,149.39,149.38,10.05003883]
[1749246745646,51.6903525,149.39,149.38,10.05003883]
[1749246746061,46.96657191,149.39,149.38,10.05003883]
[1749246746253,51.68873565,149.39,149.38,10.05003883]
[1749246746458,51.68793879,149.39,149.38,10.05003883]
[1749246746657,51.68793912,149.39,149.38,10.05003883]
[1749246746856,49.05682343,149.39,149.38,10.05003883]
[1749246747057,51.6880117,149.39,149.38,10.05003883]
[1749246747258,47.02195201,149.39,149.38,10.05003883]
[1749246747456,51.6880117,149.39,149.38,10.05003883]
[1749246748360,51.68805169,149.39,149.38,10.05003883]
[1749246748661,46.96583701,149.39,149.38,10.05003883]
[1749246748861,44.33465969,149.39,149.38,10.05003883]
[1749246749061,51.68471327,149.39,149.38,10.05003883]
[1749246749353,47.01865358,149.39,149.38,10.05003883]
[1749246749553,51.68471327,149.39,149.38,10.05003883]
[1749246749958,51.68378356,149.39,149.38,10.05003883]
[1749246750454,49.05687437,149.39,149.38,10.05003883]
[1749246750660,51.68378356,149.39,149.38,10.05003883]
[1749246751361,51.68153594,149.39,149.38,10.05003883]
[1749246751562,51.68097768,149.39,149.38,10.05003883]
[1749246752756,51.67731235,149.39,149.38,10.05003883]
[1749246752956,51.67726616,149.39,149.38,10.05003883]
[1749246753760,40.32260647,149.39,149.38,10.05003883]
[1749246753960,44.98866616,149.39,149.38,10.05003883]
[1749246754862,42.36236142,149.39,149.38,10.05003883]
[1749246755259,42.36668649,149.39,149.38,10.05003883]
[1749246755659,44.98951306,149.39,149.38,10.05003883]
[1749246756362,37.64605969,149.39,149.38,10.05003883]
[1749246756563,40.26875911,149.39,149.38,10.05003883]
[1749246756763,44.98923899,149.39,149.38,10.05003883]
[1749246757463,44.98923346,149.39,149.38,10.05003883]
[1749246757960,44.98909494,149.39,149.38,10.05003883]
[1749246758163,44.98898424,149.39,149.38,10.05003883]
[1749246758554,40.32307024,149.39,149.38,10.05003883]
[1749246758758,44.98912993,149.39,149.38,10.05003883]
[1749246759464,42.36638269,149.39,149.38,10.05003883]
[1749246759666,44.98966389,149.39,149.38,10.05003883]
[1749246760062,42.36639857,149.39,149.38,10.05003883]
[1749246760262,44.98967977,149.39,149.38,10.05003883]
[1749246760668,37.64605969,149.39,149.38,10.05003883]
[1749246760861,44.98964464,149.39,149.38,10.05003883]
[1749246761467,44.98784375,149.39,149.38,10.05003883]
[1749246762466,40.2693101,149.39,149.38,10.05003883]
[1749246762666,44.99042078,149.39,149.38,10.05003883]
[1749246763362,44.99050159,149.39,149.38,10.05003883]
[1749246764068,44.99090842,149.39,149.38,10.05003883]
[1749246765770,44.99488444,149.39,149.38,10.05003883]
[1749246766272,44.99488878,149.39,149.38,10.05003883]
[1749246766973,44.994914,149.39,149.38,10.05003883]
[1749246767674,44.99499447,149.39,149.38,10.05003883]
[1749246767974,44.99499968,149.39,149.38,10.05003883]
[1749246768376,44.99397366,149.39,149.38,10.05003883]
[1749246769475,44.99419238,149.39,149.38,10.05003883]
[1749246769674,44.99448107,149.39,149.38,10.05003883]
[1749246770876,42.36751441,149.39,149.38,10.05003883]
[1749246771077,44.99539968,149.39,149.38,10.05003883]
[1749246771474,51.6847568,149.39,149.38,10.05003883]
[1749246772379,44.99692747,149.39,149.38,10.05003883]
[1749246772780,44.9973966,149.39,149.38,10.05003883]
[1749246773176,40.27381218,149.39,149.38,10.05003883]
[1749246773378,44.9972412,149.39,149.38,10.05003883]
[1749246774185,45.00005366,149.39,149.38,10.05003883]
[1749246774478,42.36948871,149.39,149.38,10.05003883]
[1749246774669,45.00004845,149.39,149.38,10.05003883]
[1749246774868,44.99925188,149.39,149.38,10.05003883]
[1749246775075,44.99904141,149.39,149.38,10.05003883]
[1749246775281,44.99904736,149.39,149.38,10.05003883]
[1749246776283,51.68673659,149.39,149.38,10.05003883]
[1749246776580,51.68677823,149.39,149.38,10.05003883]
[1749246777781,49.0559877,149.39,149.38,10.05003883]
[1749246777978,51.68604276,149.39,149.38,10.05003883]
[1749246778178,51.68604059,149.39,149.38,10.05003883]
[1749246778379,49.05547367,149.39,149.38,10.05003883]
[1749246778580,51.68602518,149.39,149.38,10.05003883]
[1749246778986,51.68624609,149.39,149.38,10.05003883]
[1749246780079,51.68231619,149.39,149.38,10.05003883]
[1749246781386,49.05524939,149.39,149.38,10.05003883]
[1749246781578,51.67453586,149.39,149.38,10.05003883]
[1749246781883,51.67451116,149.39,149.38,10.05003883]
[1749246782881,44.98591116,149.39,149.38,10.05003883]
[1749246783481,40.32187337,149.39,149.38,10.05003883]
[1749246783687,44.98713649,149.39,149.38,10.05003883]
[1749246784694,51.67573649,149.39,149.38,10.05003883]
[1749246784893,51.67624661,149.39,149.38,10.05003883]
[1749246785295,46.96122286,149.39,149.38,10.05003883]
[1749246785592,51.67170455,149.39,149.38,10.05003883]
[1749246786291,51.67005267,149.39,149.38,10.05003883]
[1749246786791,46.95957098,149.39,149.38,10.05003883]
[1749246787193,51.66146911,149.39,149.38,10.05003883]
[1749246787897,51.66196399,149.39,149.38,10.05003883]
[1749246788097,51.66224035,149.39,149.38,10.05003883]
[1749246789288,51.66231067,149.39,149.38,10.05003883]
[1749246789790,51.66514148,149.39,149.38,10.05003883]
[1749246789996,51.66542268,149.39,149.38,10.05003883]
[1749246790195,46.96273974,149.39,149.38,10.05003883]
[1749246790390,51.66542268,149.39,149.38,10.05003883]
[1749246791500,51.66529526,149.39,149.38,10.05003883]
[1749246792198,51.66208821,149.39,149.38,10.05003883]
[1749246793100,51.66313834,149.39,149.38,5.03152394]
[1749246793396,51.66313834,149.39,149.32,4.2086]
[1749246793397,44.97453834,149.39,149.32,4.2086]
[1749246793599,4.66526312,149.33,149.32,4.2086]
[1749246793796,11.99495326,149.33,149.32,4.2086]
[1749246794599,11.99495326,149.33,149.32,10.9004]
[1749246794900,11.99495326,149.33,149.32,8.7894]
[1749246795102,11.98979569,149.33,149.32,8.7894]
[1749246795401,7.29148435,149.33,149.32,8.7894]
[1749246795602,11.98670272,149.33,149.32,18.7894]
[1749246796004,7.3214396,149.33,149.32,18.7894]
[1749246796197,11.98670272,149.33,149.32,18.7894]
[1749246796397,11.98202489,149.33,149.32,18.7894]
[1749246796598,11.98018338,149.33,149.32,18.7894]
[1749246798097,11.97071075,149.33,149.32,18.7894]
[1749246799414,11.9697059,149.33,149.32,18.7894]
[1749246799605,7.28162491,149.33,149.32,18.7894]
[1749246799799,11.96820468,149.33,149.32,18.7894]
[1749246800005,7.28162491,149.33,149.32,18.7894]
[1749246800307,11.95195557,149.33,149.32,18.7894]
[1749246801105,9.33559378,149.33,149.32,18.7894]
[1749246801305,11.95188052,149.33,149.32,18.7894]
[1749246801702,7.28150755,149.33,149.32,18.7894]
[1749246801902,11.95188052,149.33,149.32,18.7894]
[1749246802802,11.95121345,149.33,149.32,18.7894]
[1749246803006,11.94883951,149.33,149.32,18.7894]
[1749246803507,11.94883973,149.33,149.32,18.7894]
[1749246803707,11.94883906,149.33,149.32,18.7894]
[1749246804408,11.95344568,149.33,149.32,18.7894]
[1749246805210,11.95344568,149.33,149.32,16.6918]
[1749246805809,11.95886064,149.33,149.32,16.6918]
[1749246806108,11.9584638,149.33,149.32,16.6918]
[1749246806409,11.95838733,149.33,149.32,16.6918]
[1749246806608,4.66526312,149.33,149.32,16.6918]
[1749246806808,11.95838733,149.33,149.32,16.6918]
[1749246808409,7.29312421,149.33,149.32,16.6918]
[1749246808710,11.95804108,149.33,149.32,16.6918]
[1749246809607,11.95445152,149.33,149.32,16.6918]
[1749246810209,11.95448221,149.33,149.32,16.6918]
[1749246810811,7.2764537,149.33,149.32,16.6918]
[1749246811011,11.95268796,149.33,149.32,16.6918]
[1749246811314,4.66526312,149.33,149.32,16.6918]
[1749246811612,9.34149738,149.33,149.32,16.6918]
[1749246811808,11.95268796,149.33,149.32,16.6918]
[1749246812910,7.27652589,149.33,149.32,16.6918]
[1749246813110,11.95297062,149.33,149.32,16.6918]
[1749246813512,11.95297509,149.33,149.32,16.6918]
[1749246814509,4.66526312,149.33,149.32,16.6918]
[1749246814715,11.95321676,149.33,149.32,16.6918]
[1749246814921,7.2766494,149.33,149.32,16.6918]
[1749246815109,11.95331631,149.33,149.32,16.6918]
[1749246816312,11.95363695,149.33,149.32,16.6918]
[1749246816513,11.97542302,149.33,149.32,16.6918]
[1749246816711,4.66526312,149.33,149.32,16.6918]
[1749246816917,11.97542302,149.33,149.32,16.6918]
[1749246818214,11.97763786,149.33,149.32,16.6918]
[1749246818516,9.36578067,149.33,149.32,16.6918]
[1749246818717,11.97777237,149.33,149.32,16.6918]
[1749246819016,11.97823839,149.33,149.32,16.6918]
[1749246819716,11.97300002,149.33,149.32,16.6918]
[1749246821713,11.97387308,149.33,149.32,16.6918]
[1749246822016,11.9738684,149.33,149.32,16.6918]
[1749246823708,11.97417968,149.33,149.32,16.6918]
[1749246825018,9.36100832,149.33,149.32,16.6918]
[1749246825218,7.27891443,149.33,149.32,16.6918]
[1749246825518,9.37005142,149.33,149.32,16.6918]
[1749246825719,11.983672,149.33,149.32,16.6918]
[1749246826221,11.98391919,149.33,149.32,16.6918]
[1749246827116,11.98394991,149.33,149.32,16.6918]
[1749246827323,11.98069694,149.33,149.32,16.6918]
[1749246828224,9.36679845,149.33,149.32,16.6918]
[1749246828522,11.98099401,149.33,149.32,16.6918]
[1749246828720,7.27945868,149.33,149.32,16.6918]
[1749246828924,11.98196508,149.33,149.32,16.6918]
[1749246830219,9.36776643,149.33,149.32,16.6918]
[1749246830414,11.98608522,149.33,149.32,16.6918]
[1749246831824,11.98608386,149.33,149.32,16.6918]
[1749246832122,9.3926427,149.33,149.32,16.6918]
[1749246832325,12.00792402,149.33,149.32,16.6918]
[1749246833227,7.3426609,149.33,149.32,16.6918]
[1749246833428,4.72737958,149.33,149.32,16.6918]
[1749246833624,37.69504051,149.34,149.33,6.6913]
[1749246833829,45.04054516,149.34,149.33,6.6913]
[1749246834127,42.4241369,149.34,149.33,6.6913]
[1749246834427,45.04071208,149.34,149.33,6.6913]
[1749246835021,40.31161569,149.34,149.33,6.6913]
[1749246835325,45.04109049,149.34,149.33,6.6913]
[1749246835914,45.04229789,149.34,149.33,6.6913]
[1749246836119,45.04499728,149.34,149.33,6.6913]
[1749246836426,40.37703477,149.34,149.33,6.6913]
[1749246836628,45.04499728,149.34,149.33,6.6913]
[1749246836825,42.4272147,149.34,149.33,6.6913]
[1749246837026,42.42931906,149.34,149.33,6.6913]
[1749246837427,37.6977399,149.34,149.33,6.6913]
[1749246837625,42.42931904,149.34,149.33,6.6913]
[1749246837825,42.43304088,149.34,149.33,6.6913]
[1749246838026,45.05288264,149.34,149.33,6.6913]
[1749246838827,45.05294303,149.34,149.33,6.6913]
[1749246839021,40.31760314,149.34,149.33,6.6913]
[1749246839427,45.05586772,149.34,149.33,16.6913]
[1749246840315,42.43604034,149.34,149.33,16.6913]
[1749246840518,40.31773441,149.34,149.33,16.6913]
[1749246840721,45.05603928,149.34,149.33,16.6913]
[1749246840919,45.05620381,149.34,149.33,16.6913]
[1749246841223,45.05620392,149.34,149.33,16.6913]
[1749246841425,45.05623767,149.34,149.33,16.6913]
[1749246842027,40.38827516,149.34,149.33,22.93386407]
[1749246842228,35.64981939,149.34,149.33,22.93386407]
[1749246842429,40.3883513,149.34,149.33,22.93386407]
[1749246842821,40.38847754,149.34,149.33,22.93386407]
[1749246843028,40.38847754,149.34,149.33,16.6913]
[1749246843730,40.38648033,149.34,149.33,16.6913]
[1749246843935,33.02977739,149.34,149.33,16.6913]
[1749246844125,40.38648033,149.34,149.33,16.6913]
[1749246844325,35.64908545,149.34,149.33,16.6913]
[1749246844533,40.38654501,149.34,149.33,16.6913]
[1749246844928,40.3165157,149.34,149.33,16.6913]
[1749246845233,45.05397057,149.34,149.33,16.6913]
[1749246845428,42.43465783,149.34,149.33,16.6913]
[1749246845627,37.69720296,149.34,149.33,16.6913]
[1749246845933,45.05405663,149.34,149.33,16.6913]
[1749246846232,37.69720296,149.34,149.33,16.6913]
[1749246846421,45.06440606,149.34,149.33,16.6913]
[1749246846625,45.06443928,149.34,149.33,16.6913]
[1749246847435,42.44522432,149.34,149.33,16.6913]
[1749246847635,37.69720296,149.34,149.33,16.6913]
[1749246847832,45.06475755,149.34,149.33,16.6913]
[1749246848936,42.44522432,149.34,149.33,16.6913]
[1749246849135,37.69720296,149.34,149.33,16.6913]
[1749246849336,45.07429563,149.34,149.33,16.6913]
[1749246849528,45.07426042,149.34,149.33,16.6913]
[1749246850338,45.06478934,149.34,149.33,16.6913]
[1749246850837,45.0662288,149.34,149.33,16.6913]
[1749246851032,40.31823772,149.34,149.33,16.6913]
[1749246851239,45.0662288,149.34,149.33,16.6913]
[1749246851633,40.31823772,149.34,149.33,16.6913]
[1749246851837,45.07165658,149.34,149.33,16.6913]
[1749246852639,37.69720296,149.34,149.33,16.6913]
[1749246852837,40.318256,149.34,149.33,16.6913]
[1749246853038,45.07170801,149.34,149.33,16.6913]
[1749246854340,45.07153869,149.34,149.33,16.6913]
[1749246854540,35.65104339,149.34,149.33,16.6913]
[1749246854740,45.0717509,149.34,149.33,16.6913]
[1749246855040,45.07157856,149.34,149.33,16.6913]
[1749246856237,45.07184283,149.34,149.33,16.6913]
[1749246856444,45.06883751,149.34,149.33,16.6913]
[1749246856637,37.69720296,149.34,149.33,16.6913]
[1749246856844,45.06886752,149.34,149.33,16.6913]
[1749246858845,45.06910626,149.34,149.33,16.6913]
[1749246859844,45.06924648,149.34,149.33,16.6913]
[1749246860234,40.31885643,149.34,149.33,16.6913]
[1749246860545,45.06747815,149.34,149.33,16.6913]
[1749246861846,45.06818416,149.34,149.33,16.6913]
[1749246862047,45.06825374,149.34,149.33,16.6913]
[1749246862545,45.06819876,149.34,149.33,16.6913]
[1749246862944,45.06819138,149.34,149.33,16.6913]
[1749246863835,45.06813426,149.34,149.33,16.6913]
[1749246864036,40.31882788,149.34,149.33,16.6913]
[1749246864440,45.06837016,149.34,149.33,16.6913]
[1749246865149,45.06836842,149.34,149.33,16.6913]
[1749246865549,37.69720296,149.34,149.33,16.6913]
[1749246865748,45.06836842,149.34,149.33,16.6913]
[1749246866850,45.06917239,149.34,149.33,16.6913]
[1749246867045,12.08917239,149.34,149.33,16.6913]
[1749246867246,45.06917239,149.34,149.33,16.6913]
[1749246867449,42.447475,149.34,149.33,16.6913]
[1749246867652,45.06951204,149.34,149.33,16.6913]
[1749246868150,40.31924,149.34,149.33,16.6913]
[1749246868351,45.06947496,149.34,149.33,16.6913]
[1749246868547,42.44743792,149.34,149.33,16.6913]
[1749246868745,40.32051431,149.34,149.33,16.6913]
[1749246868948,45.07074927,149.34,149.33,16.6913]
[1749246869449,45.07073174,149.34,149.33,16.6913]
[1749246869847,42.44833229,149.34,149.33,16.6913]
[1749246870041,45.07071633,149.34,149.33,16.6913]
[1749246870555,45.07068458,149.34,149.33,16.6913]
[1749246870740,45.07069999,149.34,149.33,16.6913]
[1749246870945,45.07077766,149.34,149.33,16.6913]
[1749246871754,45.07056611,149.34,149.33,16.6913]
[1749246872048,40.32035315,149.34,149.33,16.6913]
[1749246872251,12.09263058,149.34,149.33,16.6913]
[1749246872553,45.07263058,149.34,149.33,16.6913]
[1749246873852,40.32028524,149.34,149.33,16.6913]
[1749246874050,45.06978988,149.34,149.33,16.6913]
[1749246874246,40.3175746,149.34,149.33,16.6913]
[1749246874451,45.06975604,149.34,149.33,16.6913]
[1749246874651,45.0696689,149.34,149.33,16.6913]
[1749246875655,40.31769252,149.34,149.33,16.6913]
[1749246875859,45.06413314,149.34,149.33,16.6913]
[1749246876048,42.44453795,149.34,149.33,16.6913]
[1749246876356,45.06397862,149.34,149.33,16.6913]
[1749246877560,45.0640527,149.34,149.33,16.6913]
[1749246877856,45.0639009,149.34,149.33,16.6913]
[1749246878058,12.0839009,149.34,149.33,16.6913]
[1749246878247,45.0639009,149.34,149.33,16.6913]
[1749246878557,12.0839009,149.34,149.33,16.6913]
[1749246878854,45.06390172,149.34,149.33,16.6913]
[1749246879250,40.31486287,149.34,149.33,16.6913]
[1749246879455,42.44428823,149.34,149.33,16.6913]
[1749246879756,45.06099312,149.34,149.33,16.6913]
[1749246879950,40.3148022,149.34,149.33,16.6913]
[1749246880152,45.0609319,149.34,149.33,16.6913]
[1749246881153,45.06081908,149.34,149.33,16.6913]
[1749246881355,37.69809733,149.34,149.33,16.6913]
[1749246881553,45.05283929,149.34,149.33,16.6913]
[1749246882658,40.31468938,149.34,149.33,16.6913]
[1749246883055,12.0730941,149.34,149.33,16.6913]
[1749246883256,45.05304125,149.34,149.33,16.6913]
[1749246883561,37.69809733,149.34,149.33,16.6913]
[1749246883858,45.05302747,149.34,149.33,16.6913]
[1749246884159,45.05312639,149.34,149.33,16.6913]
[1749246884461,42.43654812,149.34,149.33,16.6913]
[1749246884652,45.05316206,149.34,149.33,16.6913]
[1749246884859,40.31471199,149.34,149.33,16.6913]
[1749246885060,45.05316365,149.34,149.33,16.6913]
[1749246886060,45.05318357,149.34,149.33,16.6913]
[1749246886258,37.69809733,149.34,149.33,16.6913]
[1749246886453,42.4338568,149.34,149.33,16.6913]
[1749246886855,45.05048476,149.34,149.33,16.6913]
[1749246887364,45.05058358,149.34,149.33,16.6913]
[1749246887550,40.3147231,149.34,149.33,16.6913]
[1749246887754,45.05058358,149.34,149.33,16.6913]
[1749246887966,45.05062403,149.34,149.33,16.6913]
[1749246888164,45.05133146,149.34,149.33,16.6913]
[1749246888355,45.05261184,149.34,149.33,16.6913]
[1749246889265,40.31547098,149.34,149.33,16.6913]
[1749246889467,45.05020983,149.34,149.33,16.6913]
[1749246889764,45.04981748,149.34,149.33,16.6913]
[1749246891072,45.05378415,149.34,149.33,16.6913]
[1749246891472,45.05524149,149.34,149.33,16.6913]
[1749246893372,45.05525872,149.34,149.33,16.6913]
[1749246893572,42.43637149,149.34,149.33,16.6913]
[1749246893877,42.43637474,149.34,149.33,16.6913]
[1749246894260,40.31657678,149.34,149.33,16.6913]
[1749246894465,45.05524881,149.34,149.33,16.6913]
[1749246895066,42.43644103,149.34,149.33,16.6913]
[1749246895272,45.05530813,149.34,149.33,16.6913]
[1749246895471,40.31660099,149.34,149.33,16.6913]
[1749246895771,42.43640908,149.34,149.33,16.6913]
[1749246895971,45.05529986,149.34,149.33,16.6913]
[1749246897075,42.43640908,149.34,149.33,16.6913]
[1749246897372,37.69770498,149.34,149.33,16.6913]
[1749246897764,40.31660345,149.34,149.33,16.6913]
[1749246897963,45.05499993,149.34,149.33,16.6913]
[1749246898467,40.38707234,149.34,149.33,16.6913]
[1749246898877,40.38714452,149.34,149.33,16.6913]
[1749246899075,40.38718097,149.34,149.33,16.6913]
[1749246899276,40.38721704,149.34,149.33,16.6913]
[1749246900276,37.76825925,149.34,149.33,16.6913]
[1749246900473,40.38721873,149.34,149.33,16.6913]
[1749246900874,40.38728704,149.34,149.33,16.6913]
[1749246901275,33.02977739,149.34,149.33,16.6913]
[1749246901476,40.38728704,149.34,149.33,16.6913]
[1749246902773,40.38687093,149.34,149.33,16.6913]
[1749246903077,35.64876859,149.34,149.33,16.6913]
[1749246903279,40.38687093,149.34,149.33,16.6913]
[1749246904481,37.76787255,149.34,149.33,16.6913]
[1749246904674,35.64875046,149.34,149.33,16.6913]
[1749246904980,40.38686331,149.34,149.33,16.6913]
[1749246906080,35.64876588,149.34,149.33,16.6913]
[1749246906375,40.38663937,149.34,149.33,16.6913]
[1749246906876,40.38651307,149.34,149.33,16.6913]
[1749246907078,45.05444066,149.34,149.33,16.6913]
[1749246907278,45.05444066,149.34,149.33,10.0]
[1749246907790,45.05579435,149.34,149.33,10.0]
[1749246907990,51.7458983,149.34,149.33,10.0]
[1749246908185,45.0549983,149.34,149.27,6.26451444]
[1749246908385,4.66928128,149.29,149.27,6.26451444]
[1749246908588,40.31642953,149.28,149.27,12.95851444]
[1749246908890,40.31643102,149.28,149.27,12.95851444]
[1749246909085,44.98571682,149.28,149.27,6.694]
[1749246909694,40.24865783,149.28,149.27,6.694]
[1749246909986,44.95778101,149.28,149.27,16.694]
[1749246910293,37.67320025,149.28,149.27,16.694]
[1749246910494,40.28835847,149.28,149.27,16.694]
[1749246911393,35.57517849,149.28,149.27,16.694]
[1749246911600,40.29601389,149.28,149.27,16.694]
[1749246911893,37.66625716,149.28,149.27,16.694]
[1749246912091,40.29599841,149.28,149.27,16.694]
[1749246912889,35.58974125,149.28,149.27,16.694]
[1749246913093,35.58974125,149.28,149.27,22.95851444]
[1749246913293,35.58974125,149.28,149.27,16.694]
[1749246913494,35.57351801,149.28,149.27,16.694]
[1749246913891,35.57204464,149.28,149.27,16.694]
[1749246915094,35.57133599,149.28,149.27,22.95851444]
[1749246915303,32.96,149.28,149.27,16.694]
[1749246915995,35.57106607,149.28,149.27,16.694]
[1749246916897,35.5709096,149.28,149.27,16.694]
[1749246917395,32.96,149.28,149.27,16.694]
[1749246917602,35.5708787,149.28,149.27,16.694]
[1749246918597,35.57024324,149.28,149.27,16.694]
[1749246918797,32.96,149.28,149.27,16.694]
[1749246918999,35.57018944,149.28,149.27,16.694]
[1749246919300,35.57025123,149.28,149.27,16.694]
[1749246919499,35.57024328,149.28,149.27,16.694]
[1749246922401,32.96,149.28,149.27,16.694]
[1749246922605,35.56917131,149.28,149.27,16.694]
[1749246922902,40.52674519,149.28,149.27,16.694]
[1749246923100,32.96,149.28,149.27,16.694]
[1749246923301,40.52674519,149.28,149.27,16.694]
[1749246923695,40.52611899,149.28,149.27,16.694]
[1749246924202,40.53265551,149.28,149.27,16.694]
[1749246924396,35.75528713,149.28,149.27,16.694]
[1749246924604,40.71877133,149.28,149.27,16.694]
[1749246926205,40.72515173,149.28,149.27,16.694]
[1749246926406,40.72557526,149.28,149.27,16.694]
[1749246927508,40.72544953,149.28,149.27,16.694]
[1749246927708,35.76038984,149.28,149.27,16.694]
[1749246927907,35.75753769,149.28,149.27,16.694]
[1749246928103,32.96,149.28,149.27,16.694]
[1749246928299,40.72248062,149.28,149.27,16.694]
[1749246928500,37.92494044,149.28,149.27,16.694]
[1749246928704,40.72247672,149.28,149.27,16.694]
[1749246929202,40.72124648,149.28,149.27,16.694]
[1749246929708,40.71938544,149.28,149.27,16.694]
[1749246930006,40.71774292,149.28,149.27,16.694]
[1749246931302,37.91524698,149.28,149.27,16.694]
[1749246931505,40.71048729,149.28,149.27,16.694]
[1749246931705,40.71062468,149.28,149.27,16.694]
[1749246931906,40.71052853,149.28,149.27,16.694]
[1749246932407,40.71042586,149.28,149.27,16.694]
[1749246932610,40.71030162,149.28,149.27,16.694]
[1749246933611,37.91385959,149.28,149.27,16.694]
[1749246933908,40.71116277,149.28,149.27,16.694]
[1749246934710,35.75730318,149.28,149.27,16.694]
[1749246934909,40.71110123,149.28,149.27,16.694]
[1749246935211,37.91379805,149.28,149.27,16.694]
[1749246935410,40.71143426,149.28,149.27,16.694]
[1749246935609,37.91404724,149.28,149.27,16.694]
[1749246935913,40.71692088,149.28,149.27,16.694]
[1749246936103,40.71695863,149.28,149.27,16.694]
[1749246937006,37.91952679,149.28,149.27,16.694]
[1749246937213,40.71724948,149.28,149.27,10.0]
[1749246937409,40.71786364,149.28,149.27,10.0]
[1749246937613,32.96,149.28,149.27,10.0]
[1749246937910,40.71849228,149.28,149.27,10.0]
[1749246939112,35.75772253,149.28,149.27,10.0]
[1749246939316,40.70889867,149.28,149.27,10.0]
[1749246939514,40.70889804,149.28,149.27,10.0]
[1749246939708,40.70889804,149.28,149.27,16.694]
[1749246940217,40.709941,149.28,149.27,16.694]
[1749246940516,40.71001538,149.28,149.27,16.694]
[1749246940716,35.75815939,149.28,149.27,16.694]
[1749246941014,32.96,149.28,149.27,16.694]
[1749246941210,40.71085271,149.28,149.27,16.694]
[1749246941406,40.71088502,149.28,149.27,16.694]
[1749246941608,40.71088503,149.28,149.27,16.694]
[1749246942218,37.91271093,149.28,149.27,16.694]
[1749246942511,40.71085271,149.28,149.27,16.694]
[1749246943118,47.40445271,149.28,149.27,10.0]
[1749246943813,42.45174178,149.28,149.27,10.0]
[1749246944015,47.40437923,149.28,149.27,10.0]
[1749246944216,44.60623745,149.28,149.27,10.0]
[1749246944417,44.6073684,149.28,149.27,10.0]
[1749246944617,47.40634799,149.28,149.27,10.0]
[1749246944820,47.40634837,149.28,149.27,10.0]
[1749246945120,40.71274912,149.28,149.27,10.0]
[1749246945619,40.71437509,149.28,149.27,10.0]
[1749246945919,40.71466996,149.28,149.27,10.0]
[1749246946119,40.71470703,149.28,149.27,10.0]
[1749246946319,40.71485318,149.28,149.27,10.0]
[1749246946618,47.12443366,149.28,149.27,10.0]
[1749246946819,52.07999919,149.28,149.27,10.0]
[1749246947119,52.08128391,149.28,149.27,10.0]
[1749246947318,52.08142164,149.28,149.27,10.0]
[1749246947719,49.28213536,149.28,149.27,10.0]
[1749246947921,47.12663685,149.28,149.27,10.0]
[1749246948216,52.08225217,149.28,149.27,10.0]
[1749246949415,49.28220691,149.28,149.27,10.0]
[1749246949722,52.06989577,149.28,149.27,10.0]
[1749246949925,52.07014243,149.28,149.27,10.0]
[1749246950517,52.06863318,149.28,149.27,10.0]
[1749246951522,52.06946438,149.28,149.27,10.0]
[1749246951717,49.26995726,149.28,149.27,10.0]
[1749246951914,44.32656983,149.28,149.27,10.0]
[1749246952119,52.07026429,149.28,149.27,10.0]
[1749246953321,47.12702748,149.28,149.27,10.0]
[1749246953521,52.07035893,149.28,149.27,10.0]
[1749246953926,47.12710721,149.28,149.27,10.0]
[1749246954126,52.07035893,149.28,149.27,10.0]
[1749246954319,52.07091466,149.28,149.27,10.0]
[1749246955019,44.32656983,149.28,149.27,10.0]
[1749246955215,47.11360221,149.28,149.27,10.0]
[1749246955419,44.32656983,149.28,149.27,10.0]
[1749246955620,52.04376136,149.28,149.27,10.0]
[1749246956422,52.04014716,149.28,149.27,10.0]
[1749246956718,44.32656983,149.28,149.27,10.0]
[1749246956918,52.04019223,149.28,149.27,10.0]
[1749246957120,52.04045154,149.28,149.27,10.0]
[1749246957324,52.04042486,149.28,149.27,10.0]
[1749246958127,44.58043127,149.28,149.27,10.0]
[1749246958426,52.03768774,149.28,149.27,10.0]
[1749246958621,44.32656983,149.28,149.27,10.0]
[1749246958826,47.3646984,149.28,149.27,10.0]
[1749246959023,52.03766823,149.28,149.27,10.0]
[1749246959718,49.25160289,149.28,149.27,10.0]
[1749246959921,52.03999337,149.28,149.27,10.0]
[1749246960321,52.03994162,149.28,149.27,10.0]